fUSD/lending_fUSD_20250306
["ID","MTS","AMOUNT","RATE_DAILY","PERIOD"]
[355561953,1741289357103,-84.85652974,9.897e-05,2]
[355561954,1741289357133,-1068.64,9.897e-05,2]
[355561955,1741289357164,-266.5795311,9.897e-05,2]
[355561956,1741289357194,-464.21642782,9.912e-05,2]
[355561957,1741289357229,-402.29323886,9.912e-05,2]
[355561958,1741289357259,-150.0,9.972e-05,2]
[355561959,1741289357291,-160.24606317,9.973e-05,2]
[355561960,1741289357319,-167.65060516,9.973e-05,2]
[355561961,1741289357348,-153.33382449,9.973e-05,2]
[355561962,1741289357377,-850.76875698,9.973e-05,2]
[355561963,1741289357426,-979.83124302,9.973e-05,2]
[355561964,1741289357455,-150.04650062,9.973e-05,2]
[355561965,1741289357486,-500.0,9.973e-05,2]
[355561966,1741289357515,-254.41474502,9.973e-05,2]
[355561967,1741289380911,-245.58525498,9.973e-05,2]
[355561968,1741289380941,-151.02930592,9.973e-05,2]
[355561969,1741289380970,-441.44,9.98e-05,2]
[355561970,1741289380998,-1609.8660168,9.98e-05,2]
[355561971,1741289381031,-2447.9205777,9.98e-05,2]
[355561972,1741289381073,-2447.9205777,9.98e-05,2]
[355561973,1741289381113,-2447.9205777,9.98e-05,2]
[355561974,1741289381153,-1793.62992166,9.98e-05,2]
[355561975,1741289381184,-654.29065604,9.99e-05,2]
[355561976,1741289381224,-228.08934396,9.99e-05,2]
[355561977,1741289381252,-778.09,9.99e-05,2]
[355561978,1741289381281,-441.44,9.99e-05,2]
[355561979,1741289381309,-772.42,9.99e-05,2]
[355561980,1741289381337,-227.88123374,9.99e-05,2]
[355561981,1741289381377,-213.55876626,9.99e-05,2]
[355561982,1741289381406,-1226.05881902,9.99e-05,2]
[355561983,1741289381445,-329.56118098,9.99e-05,2]
[355561984,1741289381474,-441.44,9.99e-05,2]
[355561985,1741289381501,-778.09,9.99e-05,2]
[355561986,1741289381530,-441.44,9.99e-05,2]
[355561987,1741289381559,-457.38939672,9.99e-05,2]
[355561988,1741289381611,-320.70060328,9.99e-05,2]
[355561989,1741289381640,-778.09,9.99e-05,2]
[355561990,1741289381669,-441.44,9.99e-05,2]
[355561991,1741289381697,-344.75,9.99e-05,2]
[355561992,1741289381726,-562.93997442,9.999e-05,2]
[355561993,1741289381758,-305.99002558,9.999e-05,2]
[355561994,1741289381786,-2141.93055212,9.999e-05,2]
[355561995,1741289381823,-2447.9205777,9.999e-05,2]
[355561996,1741289382071,-2447.9205777,9.999e-05,2]
[355561997,1741289406113,-150.0,9.998e-05,2]
[355561998,1741289406145,-2865.2554565,9.999e-05,2]
[355561999,1741289406187,-2453.97283694,9.999e-05,2]
[355562000,1741289406217,-550.0,9.999e-05,2]
[355562001,1741289406246,-11.28261956,9.999e-05,3]
[355562002,1741289406290,-138.71738044,9.999e-05,3]
[355562003,1741289406320,-260.07044099,9.999e-05,2]
[355562004,1741289406349,-500.0,9.999e-05,2]
[355562005,1741289406377,-500.0,9.999e-05,2]
[355562006,1741289406406,-471.50130044,9.999e-05,2]
[355562007,1741289406437,-500.0,9.999e-05,2]
[355562008,1741289406466,-500.0,9.999e-05,2]
[355562009,1741289406495,-144.96633463,9.999e-05,2]
[355562010,1741289406532,-355.03366537,9.999e-05,2]
[355562011,1741289406566,-500.0,9.999e-05,2]
[355562012,1741289406596,-252.10470507,9.999e-05,2]
[355562013,1741289406627,-500.0,9.999e-05,2]
[355562014,1741289406656,-357.73569392,9.999e-05,2]
[355562015,1741289406914,-500.0,9.999e-05,2]
[355562016,1741289406947,-500.0,9.999e-05,2]
[355562017,1741289406978,-50.38139214,9.999e-05,2]
[355562018,1741289407021,-449.61860786,9.999e-05,2]
[355562019,1741289407052,-123.75852154,9.999e-05,2]
[355562029,1741289432113,-161.27798234,9.973e-05,2]
[355562030,1741289432124,-500.0,9.973e-05,2]
[355562031,1741289432133,-1242.30201766,9.997e-05,2]
[355562032,1741289432179,-36622.0660339,9.997e-05,2]
[355562033,1741289432193,-316.60969994,9.997e-05,2]
[355562034,1741289432243,-43010.79713,9.997e-05,2]
[355562035,1741289432371,-458.25674922,9.997e-05,2]
[355562036,1741289432382,-2657.61187574,9.997e-05,2]
[355562037,1741289432506,-645121.99233394,9.997e-05,2]
[355562038,1741289432515,-376.24147846,9.999e-05,2]
[355562039,1741289432524,-500.0,9.999e-05,2]
[355562040,1741289432533,-500.0,9.999e-05,2]
[355562041,1741289432542,-500.0,9.999e-05,2]
[355562042,1741289432550,-500.0,9.999e-05,2]
[355562043,1741289432559,-500.0,9.999e-05,2]
[355562044,1741289432568,-500.0,9.999e-05,2]
[355562045,1741289432580,-515.24787043,9.999e-05,2]
[355562046,1741289432590,-500.0,9.999e-05,2]
[355562047,1741289432599,-500.0,9.999e-05,2]
[355562048,1741289432608,-600.0,9.999e-05,2]
[355562049,1741289432619,-492.55189667,9.999e-05,2]
[355562050,1741289432629,-1541426.94127096,0.0001,2]
[355562051,1741289437950,-3451.34324685,0.0001,2]
[355562052,1741289437963,-16281.47410874,0.0001,2]
[355562053,1741289438045,-9487.32132093,0.0001,2]
[355562054,1741289438056,-11892.72271579,0.0001,2]
[355562055,1741289438067,-12075.92852,0.0001,2]
[355562056,1741289438078,-27743.35918289,0.0001,2]
[355562057,1741289438089,-1035.0109381,0.0001,2]
[355562058,1741289438101,-10123.80765997,0.0001,2]
[355562059,1741289438113,-523.33490267,0.0001,2]
[355562060,1741289438124,-1760.36597552,0.0001,2]
[355562061,1741289438219,-1145.19149778,0.0001,2]
[355562062,1741289438232,-385.36424049,0.0001,2]
[355562063,1741289438244,-865.69,0.0001,2]
[355562064,1741289438256,-40000.0,0.0001,2]
[355562065,1741289438284,-837.40192961,0.0001,2]
[355562066,1741289438296,-41358.53300018,0.0001,2]
[355562069,1741289438308,-3629.02413031,0.0001,2]
[355562071,1741289438319,-180031.66322133,0.0001,2]
[355562074,1741289438337,-2961.04576981,0.0001,2]
[355562076,1741289438348,-987.54270914,0.0001,2]
[355562078,1741289438358,-4192.942632,0.0001,2]
[355562082,1741289438385,-1330.55565,0.0001,2]
[355562134,1741289440123,-10733.52229452,0.0001,2]
[355562135,1741289440135,-73441.92201997,0.0001,2]
[355562136,1741289440311,-12414.24084862,0.0001,2]
[355562137,1741289440338,-607946.86203897,0.0001,2]
[355562139,1741289440495,-318.72088959,0.0001,2]
[355562158,1741289443065,-342703.72073653,0.0001,2]
[355562159,1741289443126,-1184.2,0.0001,2]
[355562162,1741289444541,-25600.49998047,0.0001,2]
[355562163,1741289444600,-40775.99021145,0.0001,2]
[355562173,1741289446117,-166251.23787545,0.0001,2]
[355562174,1741289446131,-8849.1,0.0001,2]
[355562175,1741289446397,-570.60994234,0.0001,2]
[355562176,1741289446408,-1302.84339328,0.0001,2]
[355562178,1741289533257,205.93,8.219e-05,2]
[355562179,1741289533290,338.21,8.219e-05,2]
[355562181,1741289657996,152.85,0.000139,31]
[355562182,1741289658071,152.85,0.000139,31]
[355562183,1741289658120,152.85,0.000139,31]
[355562184,1741289658187,152.85,0.000139,31]
[355562185,1741289658243,152.85,0.000139,31]
[355562186,1741289658305,152.85,0.000139,31]
[355562187,1741289658435,152.85,0.000139,31]
[355562191,1741289920913,821.3,9.191e-05,2]
[355562193,1741289966526,254.67,9.211e-05,2]
[355562194,1741290131504,772.24024676,9.195e-05,2]
[355562195,1741290131536,1227.75975324,9.195e-05,2]
[355562196,1741290132624,497.14252691,9.195e-05,2]
[355562199,1741290261472,152.89,0.000139,31]
[355562200,1741290261549,152.89,0.000139,31]
[355562201,1741290261580,152.89,0.000139,31]
[355562202,1741290261626,152.89,0.000139,31]
[355562203,1741290261671,152.89,0.000139,31]
[355562204,1741290261707,152.89,0.000139,31]
[355562205,1741290261767,152.89,0.000139,31]
[355562206,1741290336122,2000.0,8.903e-05,2]
[355562207,1741290406903,-364.72,8.841e-05,2]
[355562208,1741290407156,-1061.07,8.903e-05,2]
[355562209,1741290407182,-729.14,8.937e-05,2]
[355562210,1741290407207,-173.97,9.174e-05,2]
[355562211,1741290407234,-550.0,9.184e-05,2]
[355562212,1741290407257,-12702.85747309,9.195e-05,2]
[355562213,1741290407282,-1852.42,9.336e-05,2]
[355562214,1741290407307,-165.68,9.429e-05,2]
[355562215,1741290407329,-650.81,9.441e-05,2]
[355562216,1741290407353,-441.44,9.441e-05,2]
[355562217,1741290407376,-150.0,9.479e-05,2]
[355562218,1741290407400,-660.58,9.492e-05,2]
[355562219,1741290407423,-440.5,9.5e-05,2]
[355562220,1741290407446,-441.44,9.5e-05,2]
[355562221,1741290407469,-150.0,9.5e-05,2]
[355562222,1741290407494,-150.0,9.5e-05,2]
[355562223,1741290407518,-778.09,9.5e-05,2]
[355562224,1741290407542,-344.75,9.5e-05,2]
[355562225,1741290407566,-778.09,9.5e-05,2]
[355562226,1741290407590,-344.75,9.5e-05,2]
[355562227,1741290407613,-344.75,9.5e-05,2]
[355562228,1741290407636,-778.09,9.5e-05,2]
[355562229,1741290407662,-8032.79,9.504e-05,2]
[355562230,1741290407685,-1405.94,9.524e-05,2]
[355562231,1741290407708,-441.44,9.541e-05,2]
[355562232,1741290407732,-778.09,9.541e-05,2]
[355562233,1741290407757,-344.75,9.556e-05,2]
[355562234,1741290407781,-344.75,9.556e-05,2]
[355562235,1741290407806,-150.0,9.578e-05,2]
[355562236,1741290407830,-150.0,9.578e-05,2]
[355562237,1741290407854,-396.66,9.578e-05,2]
[355562238,1741290407878,-688.74,9.578e-05,2]
[355562239,1741290407908,-150.0,9.678e-05,2]
[355562240,1741290407934,-440.31,9.678e-05,2]
[355562241,1741290407959,-344.62,9.678e-05,2]
[355562242,1741290407984,-150.0,9.725e-05,2]
[355562243,1741290408010,-150.0,9.78e-05,2]
[355562244,1741290408035,-593.0,9.781e-05,2]
[355562245,1741290408060,-500.0,9.781e-05,2]
[355562246,1741290408088,-150.0,9.79e-05,2]
[355562247,1741290408113,-150.0,9.79e-05,2]
[355562248,1741290408139,-344.75,9.79e-05,2]
[355562249,1741290408164,-150.0,9.79e-05,2]
[355562250,1741290408190,-150.0,9.79e-05,2]
[355562251,1741290408216,-778.09,9.79e-05,2]
[355562252,1741290408245,-344.75,9.79e-05,2]
[355562253,1741290408271,-241.78,9.79e-05,2]
[355562254,1741290408296,-440.5,9.79e-05,2]
[355562255,1741290408321,-292.14,9.79e-05,2]
[355562256,1741290408348,-441.44,9.79e-05,2]
[355562257,1741290408375,-440.5,9.79e-05,2]
[355562258,1741290408400,-150.0,9.79e-05,2]
[355562259,1741290408426,-778.09,9.79e-05,2]
[355562260,1741290408452,-441.44,9.79e-05,2]
[355562261,1741290408476,-150.0,9.79e-05,2]
[355562262,1741290408503,-344.75,9.79e-05,2]
[355562263,1741290408529,-364.72,9.946e-05,2]
[355562264,1741290408553,-155.26505037,9.973e-05,2]
[355562265,1741290408580,-500.0,9.973e-05,2]
[355562266,1741290408605,-160.27063272,9.973e-05,2]
[355562267,1741290408629,-2554.102,9.979e-05,2]
[355562268,1741290408653,-175.659,9.979e-05,2]
[355562269,1741290408677,-1187.51584382,9.98e-05,2]
[355562270,1741290428683,-49160.51105142,9.98e-05,2]
[355562271,1741290428710,-778.09,9.98e-05,2]
[355562272,1741290428738,-61.39894858,9.98e-05,2]
[355562273,1741290537951,-171.69,9.511e-05,2]
[355562274,1741290537974,-2000.0,9.526e-05,2]
[355562275,1741290537996,-191.76,9.526e-05,2]
[355562276,1741290545142,217.94315992,0.00011815,31]
[355562277,1741290553383,-550.0,9.528e-05,2]
[355562278,1741290593221,-250.0,9.53e-05,2]
[355562279,1741290593248,-171.69,9.891e-05,2]
[355562280,1741290593272,-644.881098,9.973e-05,2]
[355562281,1741290593297,-716.69105142,9.98e-05,2]
[355562282,1741290593321,-307.0,9.98e-05,2]
[355562283,1741290593346,-150.0,9.98e-05,2]
[355562284,1741290593371,-441.44,9.98e-05,2]
[355562285,1741290593397,-150.0,9.98e-05,2]
[355562286,1741290593421,-150.0,9.998e-05,2]
[355562287,1741290593444,-832.73,9.999e-05,2]
[355562288,1741290593468,-500.0,9.999e-05,2]
[355562289,1741290593493,-248.5017136,9.999e-05,2]
[355562290,1741290593516,-500.0,9.999e-05,2]
[355562291,1741290593540,-500.0,9.999e-05,2]
[355562292,1741290593564,-500.0,9.999e-05,2]
[355562293,1741290593588,-500.0,9.999e-05,2]
[355562294,1741290593612,-500.0,9.999e-05,2]
[355562295,1741290593636,-611.91666951,9.999e-05,2]
[355562296,1741290593660,-500.0,9.999e-05,2]
[355562297,1741290593683,-500.0,9.999e-05,2]
[355562298,1741290593707,-500.0,9.999e-05,2]
[355562299,1741290593731,-500.0,9.999e-05,2]
[355562300,1741290593754,-500.0,9.999e-05,2]
[355562301,1741290593776,-500.0,9.999e-05,2]
[355562302,1741290593801,-500.0,9.999e-05,2]
[355562303,1741290593826,-500.0,9.999e-05,2]
[355562304,1741290593850,-606.86620279,9.999e-05,2]
[355562305,1741290593877,-500.0,9.999e-05,2]
[355562306,1741290593901,-500.0,9.999e-05,2]
[355562307,1741290593926,-500.0,9.999e-05,2]
[355562308,1741290593953,-250.0,9.999e-05,2]
[355562309,1741290593976,-247.20578495,9.999e-05,2]
[355562310,1741290594001,-177.54063089,9.999e-05,2]
[355562311,1741290594027,-150.0,9.999e-05,2]
[355562312,1741290594052,-150.0,9.999e-05,2]
[355562313,1741290594076,-441.44,0.0001,2]
[355562314,1741290594100,-84802.09684884,0.0001,2]
[355562315,1741290607631,-300.0,9.999e-05,2]
[355562316,1741290607667,-150.0,0.0001,2]
[355562317,1741290607693,-49550.0,0.0001,2]
[355562324,1741290632420,-648.9264166,0.0001,2]
[355562325,1741290632516,-428.3564106,0.0001,2]
[355562326,1741290632529,-473.98902939,0.0001,2]
[355562327,1741290632540,-593.74518404,0.0001,2]
[355562328,1741290632569,-8939.2,0.0001,2]
[355562329,1741290632680,-979.02,0.0001,2]
[355562330,1741290634823,-4424.8204,0.0001,2]
[355562331,1741290634930,-38269.53,0.0001,2]
[355562332,1741290634986,-1924.68840001,0.0001,2]
[355562333,1741290634999,-1361.4576928,0.0001,2]
[355562334,1741290635011,-1560.32774814,0.0001,2]
[355562335,1741290635023,-12862.20762465,0.0001,2]
[355562344,1741290638195,-337.7107128,9.9e-05,2]
[355562346,1741290638209,-662.2892872,9.9e-05,2]
[355562348,1741290638220,-4478.32320735,0.0001,2]
[355562350,1741290638232,-1037.3155389,0.0001,2]
[355562351,1741290638245,-6095.13391517,0.0001,2]
[355562352,1741290638264,-51658.15176333,0.0001,2]
[355562353,1741290638336,-4481.15,0.0001,2]
[355562354,1741290638347,-13740.6,0.0001,2]
[355562355,1741290638379,-273.05543703,0.0001,2]
[355562356,1741290638391,-2975.06626854,0.0001,2]
[355562357,1741290638514,-2520.66658272,0.0001,2]
[355562360,1741290640294,-35341.00492856,0.0001,2]
[355562440,1741290641502,-30299.34849203,0.0001,2]
[355562441,1741290641836,-26195.08263742,0.0001,2]
[355562442,1741290641850,-2215.53656286,0.0001,2]
[355562443,1741290641948,-25469.58281239,0.0001,2]
[355562444,1741290641960,-266.45984744,0.0001,2]
[355562445,1741290641974,-1792.4000004,0.0001,2]
[355562446,1741290641992,-26526.29999997,0.0001,2]
[355562447,1741290642005,-776.51796987,0.0001,2]
[355562448,1741290642036,-296.81023812,0.0001,2]
[355562449,1741290642051,-405.555575,0.0001,2]
[355562465,1741290643235,-4480.29192642,0.0001,2]
[355562466,1741290643342,-18097.69626618,0.0001,2]
[355562467,1741290643354,-881.0,0.0001,2]
[355562468,1741290643411,-1016.05,0.0001,2]
[355562469,1741290643423,-368.2466143,0.0001,2]
[355562474,1741290646285,-2793.7,0.0001,2]
[355562475,1741290646296,-4391.32693231,0.0001,2]
[355562476,1741290646394,-1274.90439811,0.0001,2]
[355562477,1741290646405,-412.3704258,0.0001,2]
[355562478,1741290646447,-661.53236924,0.0001,2]
[355562479,1741290646616,-841.15114635,0.0001,2]
[355562480,1741290646627,-22014.4,0.0001,2]
[355562482,1741290689840,882.9,8.219e-05,2]
[355562613,1741290863121,152.96,0.000139,31]
[355562614,1741290863207,152.96,0.000139,31]
[355562615,1741290863261,152.96,0.000139,31]
[355562616,1741290863296,152.96,0.000139,31]
[355562617,1741290863361,152.96,0.000139,31]
[355562618,1741290863477,152.96,0.000139,31]
[355562619,1741290863526,152.96,0.000139,31]
[355562631,1741291805190,921.93,8.219e-05,2]
[355562638,1741291832387,-1454.32311748,8.928e-05,2]
[355562639,1741291832402,-15.39688252,8.928e-05,2]
[355562640,1741291832412,-150.0,8.977e-05,2]
[355562641,1741291832422,-191.76,9.027e-05,2]
[355562642,1741291832434,-150.0,9.043e-05,2]
[355562643,1741291832444,-210.79,9.049e-05,2]
[355562644,1741291832454,-210.79,9.087e-05,2]
[355562645,1741291832463,-210.79,9.125e-05,2]
[355562646,1741291832472,-210.79,9.164e-05,2]
[355562647,1741291832483,-210.79,9.202e-05,2]
[355562648,1741291832492,-854.91,9.236e-05,2]
[355562649,1741291832502,-210.79,9.24e-05,2]
[355562650,1741291832512,-210.79,9.278e-05,2]
[355562651,1741291832523,-2727.73,9.298e-05,2]
[355562652,1741291832533,-210.79,9.316e-05,2]
[355562653,1741291832543,-210.79,9.354e-05,2]
[355562654,1741291832552,-344.75,9.378e-05,2]
[355562655,1741291832561,-210.79,9.392e-05,2]
[355562656,1741291832570,-210.79,9.43e-05,2]
[355562657,1741291832579,-210.79,9.468e-05,2]
[355562658,1741291832588,-129.87411748,9.494e-05,2]
[355562659,1741291832600,-200.41588252,9.494e-05,2]
[355562660,1741291832609,-210.79,9.507e-05,2]
[355562661,1741291832619,-300.0,9.52e-05,2]
[355562662,1741291832628,-5170.32,9.521e-05,2]
[355562663,1741291832637,-439.44,9.53e-05,2]
[355562664,1741291832646,-689.41,9.53e-05,2]
[355562665,1741291832655,-778.09,9.53e-05,2]
[355562666,1741291832668,-778.09,9.53e-05,2]
[355562667,1741291832677,-441.44,9.53e-05,2]
[355562668,1741291832686,-778.09,9.53e-05,2]
[355562669,1741291832695,-441.44,9.53e-05,2]
[355562670,1741291832704,-777.67,9.53e-05,2]
[355562671,1741291832713,-1000.0,9.531e-05,2]
[355562672,1741291832723,-150.0,9.539e-05,2]
[355562673,1741291832733,-344.75,9.54e-05,2]
[355562674,1741291832742,-778.09,9.54e-05,2]
[355562675,1741291832751,-778.09,9.54e-05,2]
[355562676,1741291832761,-441.44,9.54e-05,2]
[355562677,1741291832770,-441.44,9.541e-05,2]
[355562678,1741291832780,-778.09,9.541e-05,2]
[355562679,1741291832790,-1122.4,9.541e-05,2]
[355562680,1741291832800,-210.79,9.545e-05,2]
[355562681,1741291832810,-150.0,9.562e-05,7]
[355562683,1741291832819,-150.0,9.57e-05,2]
[355562685,1741291832828,-436.85276072,9.57e-05,2]
[355562687,1741291832841,-4.58723928,9.57e-05,2]
[355562689,1741291832850,-505.08,9.57e-05,2]
[355562691,1741291832859,-778.09,9.57e-05,2]
[355562693,1741291832868,-268.84,9.578e-05,2]
[355562695,1741291832877,-150.0,9.578e-05,2]
[355562697,1741291832886,-300.0,9.578e-05,2]
[355562699,1741291832895,-230.92,9.578e-05,2]
[355562701,1741291832905,-880.62,9.578e-05,2]
[355562703,1741291832917,-344.75,9.578e-05,2]
[355562705,1741291832927,-210.79,9.583e-05,2]
[355562707,1741291832936,-500.0,9.589e-05,2]
[355562709,1741291832945,-210.79,9.621e-05,2]
[355562711,1741291832954,-210.79,9.659e-05,2]
[355562713,1741291832964,-282.34,9.678e-05,2]
[355562715,1741291832973,-344.75,9.678e-05,2]
[355562717,1741291832982,-210.79,9.697e-05,2]
[355562718,1741291832991,-210.79,9.735e-05,2]
[355562719,1741291833000,-210.79,9.773e-05,2]
[355562720,1741291833011,-150.0,9.82e-05,2]
[355562721,1741291833020,-2043.282,9.899e-05,2]
[355562722,1741291833030,-175.65951585,9.899e-05,2]
[355562723,1741291833040,-4523.4816,9.9e-05,2]
[355562724,1741291833050,-2163.1079,9.9e-05,2]
[355562725,1741291833061,-313.4072,9.9e-05,2]
[355562726,1741291833071,-2688.93320163,9.9e-05,2]
[355562727,1741291833094,-4662.79896132,9.9e-05,2]
[355562728,1741291833126,-1873.06227289,9.9e-05,2]
[355562729,1741291833139,-2868.61846416,9.9e-05,2]
[355562730,1741291833149,-1114.656,9.9e-05,2]
[355562731,1741291833159,-1206.0,9.9e-05,2]
[355562732,1741291833169,-1238.2,9.9e-05,2]
[355562733,1741291833180,-150.0,9.95e-05,2]
[355562734,1741291833191,-689.12,9.95e-05,2]
[355562735,1741291833200,-441.44,9.95e-05,2]
[355562736,1741291833210,-778.09,9.95e-05,2]
[355562737,1741291833220,-150.0,9.95e-05,2]
[355562738,1741291833230,-257.63499634,9.999e-05,2]
[355562742,1741291838257,-540.39500366,9.999e-05,2]
[355562743,1741291838266,-500.0,9.999e-05,2]
[355562744,1741291838276,-439.74683867,9.999e-05,2]
[355562745,1741291838286,-208.83792816,9.999e-05,2]
[355562746,1741291838296,-178.5406892,9.999e-05,2]
[355562747,1741291838305,-6653.79363633,0.0001,2]
[355562748,1741291838332,-11123.30137837,0.0001,2]
[355562749,1741291838343,-5706.13483158,0.0001,2]
[355562750,1741291838380,-3979.7801504,0.0001,2]
[355562751,1741291838391,-4450.75,0.0001,2]
[355562752,1741291838404,-5716.14343883,0.0001,2]
[355562753,1741291838426,-1055.390328,0.0001,2]
[355562754,1741291838595,-5997.60007301,0.0001,2]
[355562755,1741291838607,-1119.92206623,0.0001,2]
[355562758,1741291841843,-1334.88742343,0.0001,2]
[355562759,1741291841895,-477.60654211,0.0001,2]
[355562782,1741291843480,-1509.09021663,0.0001,2]
[355562784,1741291843491,-369.12270208,0.0001,2]
[355562786,1741291843502,-4955.95916019,0.0001,2]
[355562796,1741291843590,-14009.0648112,0.0001,2]
[355562798,1741291843601,-307.56447159,0.0001,2]
[355562799,1741291843631,-5570.88,0.0001,2]
[355562800,1741291843759,-865.7916685,0.0001,2]
[355562813,1741291846568,-71754.90371497,0.0001,2]
[355562814,1741291846675,-1790.3736,0.0001,2]
[355562819,1741292350218,-165.14,9.187e-05,2]
[355562820,1741292350239,-1000.0,9.439e-05,2]
[355562821,1741292350261,-150.0,9.554e-05,2]
[355562822,1741292350282,-150.0,9.753e-05,2]
[355562823,1741292350302,-1205.78810016,9.89e-05,2]
[355562824,1741292350322,-1000.0,9.899e-05,2]
[355562825,1741292350344,-150.0,9.899e-05,2]
[355562826,1741292350364,-1819.3268,9.9e-05,2]
[355562827,1741292350385,-7859.74509984,9.9e-05,2]
[355562829,1741292562408,-401.17,0.00010958,7]
[355562839,1741292900632,504.53679884,8.219e-05,2]
[355562840,1741292900664,371.29320116,8.219e-05,2]
[355562846,1741292959718,1000.0,8.762e-05,2]
[355562855,1741293031756,-338.23,9.186e-05,2]
[355562856,1741293031767,-2000.0,9.186e-05,2]
[355562857,1741293031776,-338.23,9.225e-05,2]
[355562858,1741293031786,-338.23,9.264e-05,2]
[355562859,1741293031795,-338.23,9.303e-05,2]
[355562860,1741293031806,-338.23,9.341e-05,2]
[355562861,1741293031815,-440.87,9.377e-05,2]
[355562862,1741293031824,-338.23,9.38e-05,2]
[355562863,1741293031834,-344.75,9.38e-05,2]
[355562864,1741293031843,-344.75,9.38e-05,2]
[355562865,1741293031852,-344.75,9.38e-05,2]
[355562866,1741293031861,-343.61,9.38e-05,2]
[355562867,1741293031871,-688.13,9.38e-05,2]
[355562868,1741293031880,-338.23,9.419e-05,2]
[355562869,1741293031889,-338.23,9.457e-05,2]
[355562870,1741293031900,-150.0,9.469e-05,2]
[355562871,1741293031910,-909.49,9.469e-05,2]
[355562872,1741293031919,-338.23,9.496e-05,2]
[355562873,1741293031928,-338.23,9.535e-05,2]
[355562874,1741293031938,-150.0,9.562e-05,7]
[355562875,1741293031947,-338.23,9.573e-05,2]
[355562876,1741293031957,-344.75,9.578e-05,2]
[355562877,1741293031966,-10000.0,9.602e-05,2]
[355562878,1741293031975,-338.23,9.612e-05,2]
[355562879,1741293031984,-338.23,9.651e-05,2]
[355562880,1741293031993,-346.1,9.678e-05,2]
[355562881,1741293032002,-338.23,9.689e-05,2]
[355562882,1741293032011,-338.23,9.728e-05,2]
[355562883,1741293032021,-338.23,9.767e-05,2]
[355562884,1741293032030,-2049.3753,9.8e-05,2]
[355562885,1741293032039,-150.0,9.8e-05,2]
[355562886,1741293032048,-338.23,9.805e-05,2]
[355562887,1741293032057,-338.23,9.844e-05,2]
[355562888,1741293032066,-1000.0,9.857e-05,2]
[355562889,1741293032075,-338.23,9.883e-05,2]
[355562890,1741293032084,-43492.34087972,9.9e-05,2]
[355562891,1741293032102,-8916.17766511,9.9e-05,2]
[355562913,1741293037587,-149.72545561,9.9e-05,2]
[355562914,1741293037630,-3555.25894986,9.9e-05,2]
[355562915,1741293037642,-1062.4557274,9.9e-05,2]
[355562916,1741293037691,-1296.56131867,9.9e-05,2]
[355562917,1741293037749,-5411.38281808,9.9e-05,2]
[355562918,1741293039980,-13907.92268571,9.9e-05,2]
[355562920,1741293039990,-500.0,9.9e-05,2]
[355562921,1741293040000,-348.1107,9.9e-05,2]
[355562922,1741293040010,-36363.4112,9.9e-05,2]
[355562923,1741293040019,-2868.6185,9.9e-05,2]
[355562924,1741293040033,-338.23,9.921e-05,2]
[355562925,1741293040043,-251.28,9.952e-05,2]
[355562926,1741293040052,-163.57889376,9.973e-05,2]
[355562927,1741293040062,-160.07598939,9.973e-05,2]
[355562928,1741293040071,-200.32278654,9.973e-05,2]
[355562929,1741293040081,-160.27063938,9.973e-05,2]
[355562930,1741293040091,-356.16091788,9.973e-05,2]
[355562932,1741293040100,-160.18649511,9.973e-05,2]
[355562933,1741293040110,-151.07624393,9.973e-05,2]
[355562934,1741293040119,-201.35648914,9.973e-05,2]
[355562935,1741293040128,-182.28331995,9.973e-05,2]
[355562936,1741293040138,-155.26128175,9.973e-05,2]
[355562937,1741293040147,-151.25749193,9.973e-05,2]
[355562938,1741293040158,-151.2555583,9.973e-05,2]
[355562939,1741293040168,-13669.20479055,9.98e-05,3]
[355562940,1741293040177,-150.0,9.98e-05,2]
[355562941,1741293040187,-1501.99973217,9.999e-05,3]
[355562942,1741293040505,-775.51,9.999e-05,2]
[355562943,1741293040514,-306.30698101,9.999e-05,2]
[355562944,1741293040522,-500.0,9.999e-05,2]